bitfinex-derivatives/quotes_ETHF0:USTF0_20250420
["timestamp","ask_amount","ask_price","bid_price","bid_amount"]
[1745109514179,2.98019,1611.9,1611.8,5.27468421]
[1745109515297,8.41599,1611.9,1611.8,4.03361421]
[1745109515596,8.41599,1611.9,1611.8,3.2245]
[1745109515597,17.52884,1611.9,1611.8,3.2245]
[1745109515786,1.24114,1611.7,1611.6,9.85263705]
[1745109515986,1.24114,1611.7,1611.6,10.66136777]
[1745109516195,6.67694,1611.7,1611.6,10.66136777]
[1745109516598,6.67694,1611.7,1611.6,9.85263705]
[1745109517395,11.67694,1611.7,1611.6,9.85263705]
[1745109517695,15.78979,1611.7,1611.6,9.85263705]
[1745109517896,1.2413,1611.5,1611.4,8.27183705]
[1745109518083,4.4491,1611.5,1611.4,8.27183705]
[1745109518685,13.4461,1611.5,1611.4,8.27183705]
[1745109519092,15.6741,1611.5,1611.4,8.27183705]
[1745109520999,15.6741,1611.5,1611.1,1.24159]
[1745109521000,1.24153,1611.2,1611.1,1.24159]
[1745109521196,1.24153,1611.2,1611.1,2.04942358]
[1745109521786,1.2415,1611.3,1611.2,1.24151]
[1745109525901,1.24143,1611.4,1611.3,1.24143]
[1745109528105,1.24148,1611.3,1611.2,1.24148]
[1745109529617,10.30807,1611.5,1611.4,1.24138]
[1745109529618,4.44915,1611.5,1611.4,1.24138]
[1745109529824,3.2078,1611.5,1611.4,1.24138]
[1745109530116,5.3522803,1611.7,1611.6,1.24122]
[1745109530515,4.1110703,1611.7,1611.6,1.24122]
[1745109532425,7.9432703,1611.7,1611.6,1.24122]
[1745109535025,5.7675703,1611.7,1611.6,7.04739252]
[1745109535224,1.0733,1611.8,1611.6,8.58117252]
[1745109535429,1.1024,1611.9,1611.8,1.24107]
[1745109535730,2.1827,1611.9,1611.8,1.24107]
[1745109536026,2.1827,1611.9,1611.8,3.63379524]
[1745109536718,4.1110703,1612.1,1612.0,1.24091]
[1745109536919,6.2761703,1612.1,1612.0,1.24091]
[1745109537228,7.5170103,1612.1,1612.0,1.24091]
[1745109537820,6.2761703,1612.1,1612.0,1.24091]
[1745109538519,7.9907703,1612.1,1612.0,1.24091]
[1745109539629,3.8797,1612.1,1612.0,1.24091]
[1745109540627,5.12054,1612.1,1612.0,1.24091]
[1745109541830,3.8797,1612.1,1612.0,1.24091]
[1745109542333,6.1077,1612.1,1612.0,1.24091]
[1745109545236,3.8797,1612.1,1612.0,1.24091]
[1745109546131,3.8797,1612.1,1612.0,5.23691]
[1745109549138,1.24063,1612.4,1612.3,1.24068]
[1745109549339,3.26103,1612.4,1612.3,1.24068]
[1745109549838,2.0204,1612.4,1612.3,1.24068]
[1745109550135,3.26101,1612.4,1612.3,1.24068]
[1745109550638,4.11285,1612.6,1612.3,7.55007]
[1745109550639,1.24046,1612.6,1612.3,7.55007]
[1745109550839,8.2239203,1612.7,1612.4,1.7401]
[1745109551037,1.24048,1612.6,1612.5,1.24047]
[1745109552037,1.24055,1612.5,1612.4,1.24055]
[1745109552736,2.97435,1612.5,1612.4,1.24055]
[1745109553437,5.20235,1612.5,1612.4,1.24055]
[1745109556038,5.20233,1612.5,1612.4,1.24055]
[1745109559449,5.20233,1612.5,1612.4,3.67246237]
[1745109561042,5.20233,1612.5,1612.4,2.86625]
[1745109561248,5.20233,1612.5,1612.4,3.67271222]
[1745109562749,5.20233,1612.5,1612.4,2.43216222]
[1745109563045,5.20233,1612.5,1612.4,2.04707222]
[1745109564743,5.20233,1612.5,1612.4,1.24061]
[1745109564943,5.20233,1612.5,1612.4,2.04769615]
[1745109566645,5.20233,1612.5,1612.4,2.04807392]
[1745109567149,1.24061,1612.4,1612.3,5.7284]
[1745109567350,3.97401,1612.4,1612.3,6.53588751]
[1745109567941,3.97401,1612.4,1612.3,7.77652751]
[1745109569049,3.97401,1612.4,1612.3,3.78052751]
[1745109570252,6.20201,1612.4,1612.3,3.78052751]
[1745109573851,6.20201,1612.4,1612.3,2.04812751]
[1745109574954,6.20201,1612.4,1612.3,3.69842751]
[1745109575941,1.24076,1612.2,1612.1,1.0449]
[1745109576147,1.24084,1612.1,1612.0,1.6503]
[1745109576348,1.24099,1611.9,1611.8,3.995]
[1745109576644,1.24099,1611.9,1611.8,1.6503]
[1745109577048,2.85029,1611.9,1611.8,1.6503]
[1745109577252,1.24107,1611.8,1611.7,18.87822946]
[1745109577451,2.85037,1611.8,1611.7,18.26423946]
[1745109577656,3.84307,1611.8,1611.7,18.26423946]
[1745109578156,6.07107,1611.8,1611.7,18.26423946]
[1745109578456,6.07107,1611.8,1611.7,15.05643946]
[1745109578644,6.07107,1611.8,1611.7,12.39023946]
[1745109578847,9.27887,1611.8,1611.7,12.39023946]
[1745109580553,1.24114,1611.7,1611.6,1.748]
[1745109580855,2.98614,1611.7,1611.6,1.748]
[1745109581156,5.21414,1611.7,1611.6,1.748]
[1745109586160,5.21414,1611.7,1611.6,2.98922]
[1745109586462,3.46914,1611.7,1611.6,2.98922]
[1745109587159,1.24114,1611.7,1611.6,2.98922]
[1745109588160,3.46914,1611.7,1611.6,2.98922]
[1745109590262,1.24114,1611.7,1611.6,2.98922]
[1745109591459,1.24113,1611.8,1611.7,1.24114]
[1745109591663,1.24113,1611.8,1611.7,2.85204]
[1745109592256,4.11285,1611.9,1611.7,1.6109]
[1745109592462,4.11285,1611.9,1611.8,3.85447]
[1745109594273,4.44877,1612.0,1611.9,1.24099]
[1745109594474,4.44877,1612.0,1611.9,3.86149]
[1745109595069,3.2078,1612.0,1611.9,3.86149]
[1745109596979,1.24089,1612.1,1612.0,1.24091]
[1745109597272,1.24089,1612.1,1612.0,1.714]
[1745109597775,1.24089,1612.1,1612.0,2.95491]
[1745109598273,3.46889,1612.1,1612.0,2.95491]
[1745109599376,1.24089,1612.1,1612.0,2.95491]
[1745109600177,3.46889,1612.1,1612.0,1.714]
[1745109601070,1.24089,1612.1,1612.0,2.95491]
[1745109603180,3.46889,1612.1,1612.0,2.95491]
[1745109603481,1.24099,1611.9,1611.8,1.0025]
[1745109603678,4.44879,1611.9,1611.8,1.0025]
[1745109603881,1.24099,1611.9,1611.8,1.0025]
[1745109604179,2.86409,1611.9,1611.8,1.0025]
[1745109604371,2.86409,1611.9,1611.8,2.6343]
[1745109605082,2.86409,1611.9,1611.8,3.87537]
[1745109607080,5.09209,1611.9,1611.8,3.87537]
[1745109607281,5.09209,1611.9,1611.8,2.6343]
[1745109607877,5.09209,1611.9,1611.8,3.87537]
[1745109608385,5.09209,1611.9,1611.8,2.6343]
[1745109608584,5.09209,1611.9,1611.8,3.87537]
[1745109610090,2.86409,1611.9,1611.8,3.87537]
[1745109610387,2.86409,1611.9,1611.8,2.6343]
[1745109611189,5.09209,1611.9,1611.8,2.6343]
[1745109611583,5.09209,1611.9,1611.6,0.9818]
[1745109611584,1.24114,1611.7,1611.6,0.9818]
[1745109611787,1.24114,1611.7,1611.6,2.6657]
[1745109611977,5.73395,1611.8,1611.5,4.142]
[1745109612183,1.24138,1611.4,1611.3,2.6657]
[1745109615290,1.24138,1611.4,1611.3,3.90715]
[1745109616299,1.24138,1611.4,1611.3,2.6657]
[1745109617388,1.24138,1611.4,1611.3,3.90715]
[1745109629502,1.24138,1611.4,1611.3,2.6657]
[1745109629808,4.44918,1611.4,1611.3,2.6657]
[1745109630103,5.42608,1611.4,1611.3,2.6657]
[1745109632317,2.21828,1611.4,1611.3,2.6657]
[1745109632907,3.92668,1611.4,1611.3,2.6657]
[1745109637611,3.92668,1611.4,1611.3,1.0325]
[1745109638413,3.92668,1611.4,1611.3,2.6852]
[1745109638714,3.92668,1611.4,1611.3,1.6527]
[1745109638913,4.84028,1611.4,1611.3,1.6527]
[1745109639914,1.24153,1611.2,1611.1,0.9688]
[1745109640213,1.24176,1610.9,1610.8,7.2038]
[1745109640407,1.24176,1610.9,1610.8,9.41444]
[1745109640606,1.24176,1610.9,1610.8,8.1726]
[1745109640806,1.24176,1610.9,1610.8,4.1766]
[1745109641308,4.44956,1610.9,1610.8,0.9688]
[1745109643101,4.44956,1610.9,1610.8,2.6393]
[1745109644417,4.44956,1610.9,1610.8,0.9688]
[1745109644613,6.16216,1610.9,1610.8,0.9688]
[1745109645703,7.13926,1610.9,1610.8,0.9688]
[1745109647203,5.35461,1611.0,1610.9,1.24176]
[1745109647407,5.35461,1611.0,1610.9,2.13316]
[1745109647606,5.35461,1611.0,1610.9,3.88316]
[1745109648107,5.35461,1611.0,1610.9,6.11116]
[1745109649008,5.35461,1611.0,1610.9,4.8694]
[1745109649225,5.35461,1611.0,1610.9,6.11116]
[1745109650018,1.24176,1611.0,1610.9,6.11116]
[1745109652319,4.44945,1611.1,1611.0,1.24168]
[1745109652623,4.44945,1611.1,1611.0,2.98338]
[1745109654423,1.24165,1611.1,1611.0,2.98338]
[1745109654620,4.44945,1611.1,1611.0,2.98338]
[1745109662227,4.44945,1611.1,1611.0,5.21138]
[1745109662525,3.2078,1611.1,1611.0,5.21138]
[1745109662727,4.44941,1611.1,1611.0,5.21138]
[1745109663526,3.2078,1611.1,1611.0,5.21138]
[1745109663729,4.44941,1611.1,1611.0,5.21138]
[1745109664335,3.2078,1611.1,1611.0,5.21138]
[1745109664629,1.24159,1611.2,1611.1,1.24161]
[1745109664832,1.24159,1611.2,1611.1,3.74731]
[1745109667329,1.24148,1611.3,1611.2,1.24153]
[1745109667529,4.44924,1611.4,1611.3,1.24145]
[1745109668037,4.44924,1611.4,1611.3,2.92135]
[1745109668532,1.24144,1611.4,1611.3,2.92135]
[1745109671629,2.21324,1611.4,1611.3,2.92135]
[1745109673432,1.24144,1611.4,1611.3,2.92135]
[1745109675730,2.82684,1611.4,1611.3,2.92135]
[1745109676126,1.24145,1611.3,1611.2,2.17018]
[1745109676324,2.82685,1611.3,1611.2,2.17018]
[1745109677233,1.24168,1611.0,1610.9,11.47397836]
[1745109677430,1.24168,1611.0,1610.9,12.45657836]
[1745109678229,2.82708,1611.0,1610.9,11.47397836]
[1745109679324,2.82708,1611.0,1610.9,8.26617836]
[1745109679938,1.24168,1611.0,1610.9,8.26617836]
[1745109680129,1.24168,1611.0,1610.9,9.87137836]
[1745109681033,1.24168,1611.0,1610.9,11.11313836]
[1745109681626,1.24168,1611.0,1610.9,2.84696]
[1745109683730,1.24168,1611.0,1610.9,1.6052]
[1745109683928,1.24168,1611.0,1610.9,2.84696]
[1745109683929,3.82978,1611.0,1610.9,2.84696]
[1745109684634,1.24176,1610.9,1610.8,2.15938]
[1745109684830,2.94076,1610.9,1610.8,3.84448]
[1745109685736,1.699,1610.9,1610.8,3.84448]
[1745109686132,2.18155,1611.0,1610.9,1.24176]
[1745109686434,3.88055,1611.0,1610.9,2.92686]
[1745109687233,3.88055,1611.0,1610.9,5.15486]
[1745109687538,2.94075,1611.0,1610.9,5.15486]
[1745109688034,4.44947,1611.1,1611.0,1.24168]
[1745109688236,4.44947,1611.1,1611.0,4.80718]
[1745109688830,3.2078,1611.1,1611.0,4.80718]
[1745109689139,4.44941,1611.1,1611.0,7.03518]
[1745109692737,6.07121,1611.1,1611.0,3.1477]
[1745109692938,6.07121,1611.1,1611.0,2.228]
[1745109693137,1.24176,1610.9,1610.8,3.5927]
[1745109693733,2.84216,1610.9,1610.8,3.5927]
[1745109695144,2.84216,1610.9,1610.8,0.9267]
[1745109695541,1.24184,1610.8,1610.7,2.228]
[1745109695741,2.84224,1610.8,1610.7,2.228]
[1745109699846,6.95509,1610.8,1610.7,2.228]
[1745109700350,10.16289,1610.8,1610.7,2.228]
[1745109708752,8.56249,1610.8,1610.7,2.228]
[1745109708946,5.35469,1610.8,1610.7,2.228]
[1745109709646,5.35469,1610.8,1610.7,4.065]
[1745109710250,5.35469,1610.8,1610.7,5.6851]
[1745109711655,1.24184,1610.8,1610.7,5.6851]
[1745109712155,2.83304,1610.8,1610.7,5.6851]
[1745109714357,1.24184,1610.8,1610.7,5.6851]
[1745109718154,2.18114,1610.8,1610.7,5.6851]
[1745109720762,2.18114,1610.8,1610.7,3.1433]
[1745109720965,5.38894,1610.8,1610.7,3.1433]
[1745109721554,7.14194,1610.8,1610.7,3.1433]
[1745109726367,7.14194,1610.8,1610.7,4.8264]
[1745109727756,4.44964,1610.8,1610.7,4.8264]
[1745109731571,1.24184,1610.8,1610.7,4.8264]
[1745109732174,2.89234,1610.8,1610.7,3.1433]
[1745109732374,3.83284,1610.8,1610.7,1.14618751]
[1745109734766,1.24184,1610.8,1610.7,1.14618751]
[1745109734972,4.44963,1610.9,1610.8,1.24184]
[1745109735168,1.24183,1610.9,1610.8,2.19144]
[1745109735479,5.3528203,1611.0,1610.9,1.24176]
[1745109735671,5.3528203,1611.0,1610.9,2.92936]
[1745109736069,5.3528203,1611.0,1610.9,1.6876]
[1745109736475,5.3528203,1611.0,1610.9,2.92936]
[1745109737779,1.24175,1611.0,1610.9,2.92936]
[1745109738476,1.24165,1611.1,1611.0,1.24165]
[1745109738779,1.24165,1611.1,1611.0,3.11065]
[1745109739075,1.24165,1611.1,1611.0,5.33865]
[1745109741180,1.24165,1611.1,1611.0,3.11065]
[1745109742284,1.24165,1611.1,1611.0,4.097]
[1745109742680,1.24165,1611.1,1611.0,5.7732]
[1745109743479,1.24165,1611.1,1611.0,3.1646]
[1745109743677,2.13915,1611.1,1611.0,3.1646]
[1745109744180,12.02195,1611.1,1611.0,1e-05]
[1745109744775,16.1348,1611.1,1611.0,1e-05]
[1745109745283,1.24191,1610.7,1610.6,24.76091782]
[1745109745675,1.24191,1610.7,1610.6,21.55311782]
[1745109746075,2.94821,1610.7,1610.6,21.55311782]
[1745109746887,2.94821,1610.7,1610.6,0.8967]
[1745109747780,2.94821,1610.7,1610.6,2.573]
[1745109748885,1.24191,1610.7,1610.6,2.573]
[1745109752788,2.95681,1610.7,1610.6,2.573]
[1745109755490,1.24199,1610.6,1610.5,2.228]
[1745109755791,2.94219,1610.6,1610.5,3.183]
[1745109755984,2.94219,1610.6,1610.5,4.8928]
[1745109756689,2.94219,1610.6,1610.5,6.13487]
[1745109756884,1.24199,1610.6,1610.5,6.13487]
[1745109757582,1.24197,1610.7,1610.6,1.24197]
[1745109757781,1.24197,1610.7,1610.6,2.88817]
[1745109758090,5.35475,1610.8,1610.7,1.24191]
[1745109758294,5.35475,1610.8,1610.7,3.85211]
[1745109758482,5.35475,1610.8,1610.7,2.6102]
[1745109758791,1.2419,1610.8,1610.7,2.6102]
[1745109759193,1.2419,1610.8,1610.7,4.8382]
[1745109761196,2.9952,1610.8,1610.7,4.8382]
[1745109763899,2.9952,1610.8,1610.7,6.08011]
[1745109765603,2.9952,1610.8,1610.7,4.8382]
[1745109765903,1.2419,1610.8,1610.7,6.08011]
[1745109767906,4.44957,1610.9,1610.8,1.24184]
[1745109768210,5.37143763,1611.0,1610.9,1.24176]
[1745109768598,5.37143763,1611.0,1610.9,2.88536]
[1745109769103,4.12971763,1611.0,1610.9,5.11336]
[1745109770506,4.12971763,1611.0,1610.9,10.11336]
[1745109771005,4.44939,1611.2,1611.1,1.24161]
[1745109771602,4.44939,1611.2,1611.1,3.85371]
[1745109773712,6.17949,1611.2,1611.1,3.85371]
[1745109773911,6.17949,1611.2,1611.1,2.6121]
[1745109774313,6.17949,1611.2,1611.1,3.85371]
[1745109774811,6.17949,1611.2,1611.1,2.6121]
[1745109775407,6.17949,1611.2,1611.1,3.85371]
[1745109778714,2.97169,1611.2,1611.1,3.85371]
[1745109783722,2.97169,1611.2,1611.1,2.6121]
[1745109784021,4.83404,1611.2,1610.8,3.2078]
[1745109784329,1.24172,1611.0,1610.9,5.23568]
[1745109784511,2.82897,1611.1,1611.0,1.24168]
[1745109785421,2.82897,1611.1,1611.0,2.93758]
[1745109788625,2.82897,1611.1,1611.0,1.6959]
[1745109788814,1.24168,1611.0,1610.9,5.23573]
[1745109789014,3.74878,1611.0,1610.9,3.994]
[1745109789416,3.74878,1611.0,1610.9,5.23576]
[1745109789622,1.24176,1610.9,1610.8,5.7672]
[1745109789826,2.85276,1610.9,1610.8,5.7672]
[1745109791122,2.85276,1610.9,1610.8,4.0231]
[1745109791321,1.24184,1610.8,1610.7,2.228]
[1745109791520,2.92044,1610.8,1610.7,2.228]
[1745109792222,7.92044,1610.8,1610.7,2.228]
[1745109793526,2.92044,1610.8,1610.7,2.228]
[1745109796022,6.12824,1610.8,1610.7,2.228]
[1745109806851,6.12824,1610.8,1610.7,3.0525]
[1745109808533,10.24109,1610.8,1610.7,3.0525]
[1745109809934,10.24109,1610.8,1610.7,2.228]
[1745109810842,11.06369,1610.8,1610.7,2.228]
[1745109811945,11.55240507,1610.8,1610.7,2.228]
[1745109814446,11.06369,1610.8,1610.7,2.228]
[1745109814633,11.55994286,1610.8,1610.7,2.228]
[1745109814941,11.06369,1610.8,1610.7,2.228]
[1745109817733,11.06369,1610.8,1610.7,4.7593]
[1745109819148,11.06369,1610.8,1610.7,2.228]
[1745109821047,7.85589,1610.8,1610.7,2.228]
[1745109821242,11.06369,1610.8,1610.7,2.228]
[1745109821843,7.85589,1610.8,1610.7,2.228]
[1745109822045,11.06369,1610.8,1610.7,2.228]
[1745109827856,7.85589,1610.8,1610.7,2.228]
[1745109828055,11.06369,1610.8,1610.7,2.228]
[1745109829849,7.85589,1610.8,1610.7,2.228]
[1745109830154,11.06369,1610.8,1610.7,2.228]
[1745109830463,11.06369,1610.8,1610.7,0.63499]
[1745109830652,1.24207,1610.5,1610.4,0.833]
[1745109830957,1.24245,1610.0,1609.9,25.89389782]
[1745109831150,1.24245,1610.0,1609.9,29.01459782]
[1745109831350,1.24245,1610.0,1609.9,34.01459782]
[1745109831862,1.24245,1610.0,1609.9,32.77211782]
[1745109832045,1.24245,1610.0,1609.9,23.77711782]
[1745109832251,1.24245,1610.0,1609.9,26.27511782]
[1745109832655,1.24245,1610.0,1609.9,27.51764782]
[1745109832856,1.24245,1610.0,1609.9,6.86123]
[1745109835071,7.32065,1610.2,1609.9,10.6187]
[1745109835363,7.32065,1610.2,1610.0,1.6547]
[1745109835658,4.11285,1610.2,1610.1,1.24238]
[1745109835864,4.11285,1610.2,1610.1,2.05228]
[1745109836255,4.11285,1610.2,1610.1,8.73068]
[1745109836562,5.35515,1610.2,1610.1,8.73068]
[1745109837360,4.11285,1610.2,1610.1,8.73068]
[1745109838063,5.35515,1610.2,1610.1,8.73068]
[1745109840768,1.2423,1610.2,1610.1,8.73068]
[1745109840972,1.24229,1610.3,1610.2,1.24227]
[1745109841167,1.24229,1610.3,1610.2,3.71447]
[1745109841857,1.24229,1610.3,1610.2,2.4722]
[1745109842067,1.24229,1610.3,1610.2,4.7002]
[1745109844968,1.24229,1610.3,1610.2,5.9425]
[1745109846073,1.24229,1610.3,1610.2,4.7002]
[1745109846268,3.68689,1610.3,1610.2,3.0399]
[1745109851074,3.68689,1610.3,1610.2,2.228]
[1745109852471,8.68689,1610.3,1610.2,2.228]
[1745109852973,3.68689,1610.3,1610.2,2.228]
[1745109853885,12.79974,1610.3,1610.2,0.47602]
[1745109854078,1.24253,1609.9,1609.8,1.686]
[1745109854675,2.99443,1609.9,1609.8,1.686]
[1745109855278,1.24253,1609.9,1609.8,1.686]
[1745109855578,1.24253,1609.9,1609.8,3.3211]
[1745109856980,2.99443,1609.9,1609.8,3.3211]
[1745109858783,1.24253,1609.9,1609.8,3.3211]
[1745109859397,2.90773,1609.9,1609.8,3.3211]
[1745109860487,1.24253,1609.9,1609.8,3.3211]
[1745109865490,2.83883,1609.9,1609.8,3.3211]
[1745109867497,4.11285,1610.0,1609.8,4.56366]
[1745109867692,5.3553,1610.0,1609.9,1.6298]
[1745109868092,5.3553,1610.0,1609.9,3.8578]
[1745109868278,7.0362,1610.0,1609.9,3.8578]
[1745109869596,10.244,1610.0,1609.9,3.8578]
[1745109870098,6.13115,1610.0,1609.9,3.8578]
[1745109872799,6.93845,1610.0,1609.9,3.8578]
[1745109875801,6.93845,1610.0,1609.9,2.228]
[1745109878106,6.93845,1610.0,1609.9,3.9549]
[1745109879909,6.93845,1610.0,1609.9,2.228]
[1745109880710,3.73065,1610.0,1609.9,2.228]
[1745109880901,6.93845,1610.0,1609.9,2.228]
[1745109881802,15.17408377,1610.0,1609.9,2.228]
[1745109887806,15.17408377,1610.0,1609.9,3.8651]
[1745109891215,14.36678377,1610.0,1609.9,3.8651]
[1745109893017,11.15898377,1610.0,1609.9,3.8651]
[1745109893518,7.04613377,1610.0,1609.9,3.8651]
[1745109899115,13.21968544,1610.0,1609.9,3.8651]
[1745109903329,9.09690167,1610.0,1609.9,3.8651]
[1745109905931,7.41600167,1610.0,1609.9,3.8651]
[1745109906127,6.17355167,1610.0,1609.9,5.10763]
[1745109906333,6.17355167,1610.0,1609.9,10.10763]
[1745109906529,7.41600167,1610.0,1609.9,5.10763]
[1745109907234,6.17355167,1610.0,1609.9,5.10763]
[1745109907536,7.41600167,1610.0,1609.9,5.10763]
[1745109909234,7.41600167,1610.0,1609.9,3.8651]
[1745109909532,9.15450167,1610.0,1609.9,2.228]
[1745109914444,14.15450167,1610.0,1609.9,2.228]
[1745109914927,9.15450167,1610.0,1609.9,2.228]
[1745109915128,11.01835167,1610.0,1609.6,4.56826]
[1745109915331,3.2078,1609.8,1609.7,2.97399]
[1745109916228,3.2078,1609.8,1609.7,5.20199]
[1745109916431,9.09807167,1610.0,1609.8,1.24255]
[1745109916633,9.09807167,1610.0,1609.9,2.6103]
[1745109917136,9.09807167,1610.0,1609.9,4.8383]
[1745109918743,7.06045073,1610.0,1609.9,4.8383]
[1745109921028,5.37845073,1610.0,1609.9,4.8383]
[1745109921229,4.13593073,1610.0,1609.9,11.08083]
[1745109921442,4.13593073,1610.0,1609.9,6.08083]
[1745109923045,4.13593073,1610.0,1609.9,10.07483]
[1745109925943,7.41599167,1610.1,1610.0,1.24245]
[1745109925944,1.24244,1610.1,1610.0,1.24245]
[1745109926252,1.24244,1610.1,1610.0,5.96355]
[1745109927037,1.24236,1610.2,1610.1,1.24233]
[1745109927336,1.24236,1610.2,1610.1,2.91523]
[1745109927538,1.24238,1610.1,1610.0,3.0482]
[1745109927742,5.26288,1610.1,1610.0,2.228]
[1745109929141,5.26288,1610.1,1610.0,3.47045]
[1745109929537,2.05508,1610.1,1610.0,6.01255]
[1745109929942,5.26288,1610.1,1610.0,2.228]
[1745109931644,9.37573,1610.1,1610.0,2.228]
[1745109933639,11.10963,1610.1,1610.0,2.228]
[1745109937157,11.10963,1610.1,1610.0,4.7339]
[1745109937856,11.10963,1610.1,1610.0,2.228]
[1745109948159,16.10963,1610.1,1610.0,0.78952]
[1745109948359,1.24269,1609.7,1609.6,9.08197836]
[1745109949270,2.88859,1609.7,1609.6,9.08197836]
[1745109952368,4.99075,1609.8,1609.6,9.08197836]
[1745109952668,1.24269,1609.7,1609.6,12.83631836]
[1745109952861,1.24269,1609.7,1609.6,4.57014]
[1745109953567,1.24269,1609.7,1609.6,3.3274]
[1745109953768,1.24269,1609.7,1609.6,4.57012]
[1745109955665,1.24269,1609.7,1609.6,3.3274]
[1745109957069,1.24269,1609.7,1609.6,4.57016]
[1745109957865,1.24269,1609.7,1609.6,3.3274]
[1745109958073,1.24269,1609.7,1609.6,4.57016]
[1745109958370,1.24269,1609.7,1609.6,3.3274]
[1745109960273,2.87599,1609.7,1609.6,3.3274]
[1745109963074,6.08379,1609.7,1609.6,3.3274]
[1745109963572,6.08379,1609.7,1609.6,0.8158]
[1745109964070,1.24276,1609.6,1609.5,2.228]
[1745109964277,3.65556,1609.6,1609.5,2.228]
[1745109972384,1.24276,1609.6,1609.5,2.228]
[1745109972680,11.45658073,1609.7,1609.5,5.94544]
[1745109972879,9.49153073,1609.7,1609.6,2.88286]
[1745109973068,8.24878073,1609.7,1609.6,2.88286]
[1745109973979,8.24878073,1609.7,1609.6,6.09066]
[1745109974170,4.13593073,1609.7,1609.6,6.09066]
[1745109974681,4.13593073,1609.7,1609.6,11.09066]
[1745109976679,6.17355167,1609.8,1609.7,1.24261]
[1745109976680,1.24261,1609.8,1609.7,1.24261]
[1745109976874,1.24261,1609.8,1609.7,3.75371]
[1745109977181,1.6577,1610.0,1609.8,1.24261]
[1745109977182,1.2426,1609.9,1609.8,1.24261]
[1745109977373,1.2426,1609.9,1609.8,3.73771]
[1745109979289,1.2426,1609.9,1609.8,2.4951]
[1745109980286,1.24261,1609.8,1609.7,4.33964]
[1745109980582,2.98251,1609.8,1609.7,6.84534]
[1745109981885,1.24261,1609.8,1609.7,6.84534]
[1745109982980,2.98248,1609.9,1609.8,1.24261]
[1745109983180,2.98248,1609.9,1609.8,2.83881]
[1745109983391,1.24251,1610.0,1609.9,1.2425]
[1745109983591,1.24251,1610.0,1609.9,2.8387]
[1745109984192,2.87881,1610.0,1609.9,5.0667]
[1745109984390,2.87881,1610.0,1609.9,3.8242]
[1745109984582,2.87881,1610.0,1609.9,2.228]
[1745109984983,7.87881,1610.0,1609.9,2.228]
[1745109987293,11.99166,1610.0,1609.9,2.228]
[1745109987593,15.98466,1610.0,1609.9,2.228]
[1745109988693,10.98466,1610.0,1609.9,2.228]
[1745109993000,10.98466,1610.0,1609.9,3.9618]
[1745109993207,6.87181,1610.0,1609.9,3.9618]
[1745109996311,6.87181,1610.0,1609.9,2.228]
[1745110001019,1.24276,1609.6,1609.5,2.3932]
[1745110001324,1.24276,1609.6,1609.5,3.2134]
[1745110001712,2.99006,1609.6,1609.5,3.2134]
[1745110002115,2.99006,1609.6,1609.5,5.4414]
[1745110003625,2.99006,1609.6,1609.5,2.228]
[1745110008025,7.10291,1609.6,1609.5,2.228]
[1745110011428,7.92211,1609.6,1609.5,2.228]
[1745110012231,1.24284,1609.5,1609.4,2.5415]
[1745110012423,4.45064,1609.5,1609.4,2.5415]
[1745110013116,4.45064,1609.5,1609.4,4.7695]
[1745110016919,4.45064,1609.5,1609.4,6.01242]
[1745110018226,4.13593073,1609.7,1609.4,13.7625]
[1745110018433,4.13593073,1609.7,1609.6,1.24276]
[1745110018832,5.37862073,1609.7,1609.6,7.04626]
[1745110019132,5.37862073,1609.7,1609.6,8.74356]
[1745110021436,5.37862073,1609.7,1609.6,3.74356]
[1745110021635,4.13593073,1609.7,1609.6,3.74356]
[1745110021826,6.17355167,1609.8,1609.7,1.24269]
[1745110022133,6.17355167,1609.8,1609.7,9.92339]
[1745110026838,1.24259,1609.9,1609.8,1.24261]
[1745110027136,1.24259,1609.9,1609.8,2.94601]
[1745110027740,3.2078,1610.1,1609.8,1.7034]
[1745110027927,1.24245,1610.0,1609.9,2.4703]
[1745110028133,1.24245,1610.0,1609.9,4.6983]
[1745110028931,1.24245,1610.0,1609.9,5.94083]
[1745110029542,1.24245,1610.0,1609.9,4.6983]
[1745110030041,1.24245,1610.0,1609.9,3.0613]
[1745110030227,3.77325,1610.0,1609.9,2.228]
[1745110030427,4.57095,1610.0,1609.9,2.228]
[1745110030636,13.6838,1610.0,1609.9,2.228]
[1745110031036,1.24269,1609.7,1609.5,7.74533]
[1745110031337,1.24269,1609.7,1609.5,8.55763]
[1745110031538,1.7572,1609.6,1609.5,8.55763]
[1745110031939,2.99996,1609.6,1609.5,8.55763]
[1745110032141,2.99996,1609.6,1609.5,10.78563]
[1745110032650,1.7572,1609.6,1609.5,10.78563]
[1745110032832,1.7572,1609.6,1609.5,6.79363]
[1745110033539,1.24275,1609.7,1609.6,1.24276]
[1745110033738,4.45048,1609.8,1609.7,1.24269]
[1745110033940,1.24269,1609.7,1609.6,3.00333]
[1745110034946,2.85299,1609.7,1609.6,3.00333]
[1745110035340,2.85299,1609.7,1609.6,1.7606]
[1745110036052,1.24269,1609.7,1609.6,3.00336]
[1745110036461,1.24269,1609.7,1609.6,1.7606]
[1745110036853,1.24269,1609.7,1609.6,3.00336]
[1745110037659,1.24269,1609.7,1609.6,1.7606]
[1745110038358,1.24269,1609.7,1609.6,3.00336]
[1745110038864,1.24269,1609.7,1609.6,1.7606]
[1745110039266,2.95299,1609.7,1609.6,3.00336]